Cogmind - Beta 16 @@@ ROGUE MODE // 2025.11.01 @ 08:42:49 Player: Cmdr.Laserstrahl Result: Destroyed by Y-54 Guardian with Gatling Laser Performance ------------- Evolutions (3) 1500 Regions Visited (7) 1400 Robots Destroyed (137) 685 Value Destroyed (3893) 3893 Prototype IDs (2) 40 Alien Tech Used (0) 0 Bonus (1281) 1281 TOTAL SCORE: 8799 Bonus ------- High Alert Combat Kills 46 Follower Combat Kills 35 Entered Garrisons 200 Used RIF Installer 1000 Cogmind --------- Core Integrity 0/700 Matter 250/300 Energy 72/100 System Corruption 9% Temperature Cool (12) Movement Core (100) Ox1 Location -7/Factory Parts ------- > --- POWER (1) -------- (None) > --- PROPULSION (3) --- (None) > --- UTILITY (7) ------ Improved Signal Interpreter Improved Melee Analysis Suite Core Analyzer Hacking Suite Relay Coupler [Sentry] (7) > --- WEAPON (2) ------- Remote Datajack Chainsword > --- INVENTORY (5) ---- Armored Huge Wheel High-capacity Matter Pod (200) Improved Trap Extractor (0/6) Improved Grenade Launcher Peak State ------------ > --- POWER ------------ Improved Deuterium Engine > --- PROPULSION ------- Advanced Treads Medium Treads Wheel > --- UTILITY ---------- High-capacity Storage Unit Improved Sensor Array Improved Signal Interpreter Advanced Targeting Computer Melee Analysis Suite Improved Medium Armor Plating Relay Coupler [Sentry] > --- WEAPON ----------- Remote Datajack Heavy Mace > --- INVENTORY -------- Micro Nuclear Core Light Treads Cryofiber Web Advanced Heat Sink Large Battery High-capacity Matter Pod Trap Scanner ECM Suite Hacking Suite Relay Coupler [Hunter] Improved Trap Extractor Beam Rifle EM Pulse Cannon Ion Cannon Flak Gun Advanced Assault Cannon Advanced Assault Cannon Improved Grenade Launcher Improved Datajack Scythe [Rating: 46] Favorites ----------- Power Improved Deuterium Engine Engine Improved Deuterium Engine Propulsion Wheel Treads Light Treads Leg Carbon-fiber Leg Wheel Wheel Hover Unit Gravmag System Utility High-capacity Storage Unit Device Improved Sensor Array Storage High-capacity Storage Unit Processor Improved Signal Interpreter Hackware Relay Coupler [Sentry] Protection Hardened Medium Armor Plating Weapon Autogun Energy Gun Medium Laser Energy Cannon Ion Cannon Ballistic Gun Autogun Ballistic Cannon Light Cannon Launcher Improved Grenade Launcher Special Weapon Remote Datajack Impact Weapon Heavy Mace Slashing Weapon Scythe Special Melee Weapon Improved Datajack Build | -11 -10 -10 -9 -8 -8 -8 -7 ------- Run | Yrd Mat Min Mat Mat Gar Mat Fac Slots Evolved 6 | . . . 2 2 . . 2 Power . | . . . . . . . . Propulsion 1 | . . . . 1 . . . Utility 5 | . . . 2 1 . . 2 Weapon . | . . . . . . . . Parts Attached 100 | 7 2 2 12 24 10 18 25 Power 11 | 1 . 1 1 4 1 2 1 Engine 11 | 1 . 1 1 4 1 2 1 Core . | . . . . . . . . Reactor . | . . . . . . . . Propulsion 32 | 2 1 . 4 7 4 9 5 Treads 7 | . . . 1 2 . 3 1 Leg 4 | . . . . . 3 1 . Wheel 20 | 2 1 . 3 5 1 5 3 Hover 1 | . . . . . . . 1 Flight . | . . . . . . . . Utility 33 | 2 1 . 3 8 2 4 13 Device 8 | 1 . . 2 3 . 1 1 Storage 3 | 1 1 . . . . . 1 Processor 6 | . . . 1 2 . . 3 Hackware 3 | . . . . . . . 3 Protection 13 | . . . . 3 2 3 5 Artifact . | . . . . . . . . Weapon 24 | 2 . 1 4 5 3 3 6 Energy Gun 5 | 1 . . 3 . 1 . . Energy Cannon 2 | . . . . 1 . . 1 Ballistic Gun 6 | 1 . 1 . 4 . . . Ballistic Cannon 1 | . . . 1 . . . . Launcher 2 | . . . . . 1 . 1 Special Weapon 2 | . . . . . . 1 1 Impact Weapon 2 | . . . . . 1 1 . Slashing Weapon 3 | . . . . . . 1 2 Piercing Weapon . | . . . . . . . . Special Melee Weapon 1 | . . . . . . . 1 Unidentified Prototypes . | . . . . . . . . Parts Lost 46 | . 3 1 7 6 7 6 16 Power 7 | . 1 . 1 2 1 1 1 Propulsion 24 | . 1 1 3 3 4 4 8 Utility 10 | . . . . 1 2 1 6 Weapon 5 | . 1 . 3 . . . 1 Highest Loss Streak 8 | . 3 4 4 2 2 2 8 To Critical Strikes . | . . . . . . . . Average Backups 18 | 3 12 12 15 19 19 19 19 Power . | . 1 . . 1 1 . 1 Propulsion 1 | 1 3 3 2 1 . . . Utility 7 | . 2 4 4 7 8 10 9 Weapon 7 | 1 5 5 8 8 8 6 6 Tool/Special . | . . . . . . . . Unused Backups 33 | . 2 . 3 6 3 5 14 Power 2 | . . . . . . . 2 Propulsion 3 | . 1 . 1 . . 1 . Utility 13 | . 1 . . 2 2 1 7 Weapon 15 | . . . 2 4 1 3 5 Tool/Special . | . . . . . . . . Average Slot Usage (%) 97 | . 98 85 95 98 98 98 95 Engine 8 | . 13 14 10 8 8 8 6 Treads 7 | . . . 8 6 . 10 12 Leg 3 | . . . . . 13 5 . Wheel 12 | . 27 28 12 19 12 9 6 Device 11 | . 14 14 19 12 9 9 7 Storage 9 | . 14 14 11 9 9 9 6 Processor 16 | . . . 10 17 18 18 22 Hackware 1 | . . . . . . . 6 Protection 5 | . . . . 5 8 9 6 Energy Gun 4 | . 14 14 10 3 6 . . Ballistic Gun 5 | . 13 . 7 11 7 . . Ballistic Cannon 1 | . . . 3 2 . . . Impact Weapon 4 | . . . . . 3 8 6 Slashing Weapon 2 | . . . . . . 5 6 Peak Build Rating 46 | 8 8 8 12 28 38 38 46 Average Rating 29 | 5 7 7 10 23 33 35 42 On Entrance 16 | . 8 6 7 12 28 37 37 Avg Prop Armor Cover (%) 13 | . . . 11 8 13 14 16 Naked Turns . | . . . . . . . . Heaviest Build 68 | 13 48 50 53 64 65 66 68 Greatest Support 70 | 20 20 20 20 30 30 32 70 Greatest Overweight (x) 21 | . 4 4 5 6 6 6 21 Average Overweight (x) 3 | . 1 2 4 2 3 3 4 Largest Inventory Capacity 20 | 8 20 20 20 20 20 20 20 Average Capacity 19 | 7 17 20 20 20 20 20 19 Most Carried 20 | 8 15 13 20 20 20 20 20 Average Carried 18 | 3 12 12 15 19 19 19 19 Final Capacity 20 | 8 20 20 20 20 20 20 5 Final Carried 20 | 8 14 12 20 20 19 20 5 Class Distribution -------------------- 42% | Mutant 36% | Scavenger-Mutant 20% | Gladiator Dominant Class ---------------- Mutant | -10/Materials Mutant | -10/Mines Mutant | -9/Materials Scavenger-Mutant | -8/Materials Scavenger-Mutant | -8/Garrison Mutant | -8/Materials Gladiator | -7/Factory Resources | -11 -10 -10 -9 -8 -8 -8 -7 ----------- Run | Yrd Mat Min Mat Mat Gar Mat Fac Matter Collected 2532 | 294 36 . 463 712 389 357 281 Remotely . | . . . . . . . . Salvage Created 4494 | 134 104 . 622 793 677 1108 1056 Parts 231 | 8 13 . 36 61 37 43 33 Haulers Intercepted 2 | . . . 1 . . . 1 Recyclers Shooed 4 | . 1 . 1 2 . . . Parts Field Recycled . | . . . . . . . . Retrieved Matter . | . . . . . . . . Parts Self-Destructed . | . . . . . . . . Prevented . | . . . . . . . . Parts Restored . | . . . . . . . . Kills | -11 -10 -10 -9 -8 -8 -8 -7 ------- Run | Yrd Mat Min Mat Mat Gar Mat Fac Combat Hostiles Destroyed 99 | . 6 . 15 24 22 16 16 Melee 22 | . . . . . 3 8 11 Guns 46 | . 6 . 10 19 11 . . Cannons 9 | . . . 4 5 . . . AOE 7 | . . . . . 7 . . Classes Destroyed 14 | 2 2 . 4 2 1 1 2 Worker 15 | . 1 . 1 4 . 3 6 Builder 1 | . . . . . . . 1 Tunneler 7 | 3 . . 1 . . 1 2 Hauler 2 | . . . 1 . . . 1 Recycler 7 | 1 . . . 1 . 2 3 Operator 1 | . . . . 1 . . . Watcher 5 | . . . . 2 . 2 1 Swarmer 40 | . 6 . 4 16 8 . 6 Grunt 33 | . . . 6 4 11 7 5 Brawler 1 | . . . . . . . 1 Duelist 1 | . . . 1 . . . . Sentry 15 | . . . 4 4 . 5 2 Specialist 4 | . . . . . . 4 . Programmer 5 | . . . . . 3 . 2 Best Kill Streak 11 | 4 4 . 6 8 8 5 11 Combat Bots Only 8 | . 3 . 6 7 8 3 3 Max Kills in Single Turn 2 | 1 2 . 1 1 2 1 2 Gunslinging 1 | . 1 . . . . . . Exploded 2 | . . . . . 2 . . Melee 1 | . . . . . 1 1 1 Uniques/NPCs Destroyed . | . . . . . . . . Combat | -11 -10 -10 -9 -8 -8 -8 -7 -------- Run | Yrd Mat Min Mat Mat Gar Mat Fac Hostile Shots Fired 813 | . 59 2 94 126 121 121 290 Missed 242 | . 20 1 22 39 30 41 89 Hits 571 | . 39 1 72 87 91 80 201 Melee 4 | . . . 4 . . . . Projectile 567 | . 39 1 68 87 91 80 201 Critical Strikes 12 | . . . 2 1 3 3 3 Damage Taken 7265 | . 405 13 908 968 1255 1071 2645 Core 1598 | . 102 . 312 150 160 172 702 Absorbed by Shields . | . . . . . . . . Redirected to Shielding 46 | . . . . . 46 . . Ignored by Resistances 98 | . . . . . . 98 . Core Remaining (%) 48 | 100 . 59 22 . . 12 . Volleys Fired 211 | 8 16 . 48 81 53 2 3 Largest 2 | 2 2 . 2 2 2 1 2 Hottest 92 | 70 70 . 80 86 92 36 90 Shots Fired 407 | 16 32 . 94 160 98 2 5 Gun 344 | 16 32 . 76 129 91 . . Cannon 51 | . . . 18 31 . . 2 Launcher 10 | . . . . . 7 1 2 Special 2 | . . . . . . 1 1 Kinetic 265 | 8 16 . 47 117 77 . . Thermal 129 | 8 16 . 47 42 14 . 2 Explosive 10 | . . . . . 7 1 2 Electromagnetic 1 | . . . . 1 . . . Robot Hit Streak 29 | 8 6 . 29 11 17 1 2 Robot Miss Streak 4 | 2 4 . 2 3 2 . . Penetration Max . | . . . . . . . . Secondary Targets 4 | . 2 . . 1 1 . . Max Gunslinging Chain 1 | . 1 . . 1 1 . . Shots Hit Robots 407 | 12 15 . 78 104 79 49 70 Core Hits 171 | 5 9 . 29 46 40 11 31 Critical Kills 3 | . . . . . 1 2 . Critical Parts Destroyed 22 | . . . 1 . 3 9 9 Critical Strikes 35 | 1 1 . 6 1 4 12 10 Burn 7 | 1 1 . 4 1 . . . Destroy 3 | . . . 1 . 2 . . Blast 1 | . . . 1 . . . . Smash 23 | . . . . . 2 12 9 Sever 1 | . . . . . . . 1 Melee Attacks 189 | . . . . . 19 71 99 Impact 158 | . . . . . 19 61 78 Slashing 30 | . . . . . . 10 20 Piercing . | . . . . . . . . Sneak Attacks 24 | . . . . . . 8 16 Combat Hostiles 3 | . . . . . . 2 1 Follow-up Attacks 12 | . . . . . . 4 8 Damage Inflicted 12123 | 149 278 . 1060 1715 2178 2382 4361 Guns 3496 | 149 183 . 782 1301 1081 . . Cannons 740 | . . . 278 404 . . 58 Explosions 1505 | . 88 . . . 607 . 810 Melee 6365 | . . . . . 490 2382 3493 Ramming 17 | . 7 . . 10 . . . Kinetic 2947 | 63 96 . 597 1300 891 . . Thermal 1478 | 86 87 . 463 405 190 . 247 Explosive 1316 | . 88 . . . 607 . 621 Electromagnetic . | . . . . . . . . Impact 5522 | . . . . . 490 2291 2741 Slashing 843 | . . . . . . 91 752 Piercing . | . . . . . . . . Highest Corruption 9 | . . . . . 1 2 9 Average Corruption 2 | . . . . . 1 1 4 Corruption Purged . | . . . . . . . . Corruption Blocked . | . . . . . . . . Effects 25 | . . . . . 1 10 14 Message Errors 9 | . . . . . . 3 6 Matter Fused 9 | . . . . . 1 5 3 Energy Discharges 4 | . . . . . . 1 3 Parts Rejected 2 | . . . . . . 1 1 Alerts 1 | . . . . . . . 1 Overload Shots . | . . . . . . . . Overflow Damage 2341 | . 8 . . 4 300 759 1270 Projectiles 12 | . . . . 4 . 8 . Explosions 286 | . 8 . . . 124 . 154 Melee 2043 | . . . . . 176 751 1116 Knockbacks 30 | . . . 1 3 . 13 13 Impact 24 | . . . . . . 12 12 Kinetic 4 | . . . 1 3 . . . Secondary 2 | . . . . . . 1 1 Self-Inflicted Damage 122 | . 3 . . 5 15 . 99 Shots 2 | . . . . . 1 . 1 Rammed 4 | . 1 . . 3 . . . Targets Rammed 4 | . 1 . . 3 . . . Kicked . | . . . . . . . . Crushed . | . . . . . . . . Highest Temperature 248 | 45 36 . 27 59 248 9 45 Average Temperature 51 | 18 15 . 14 14 97 6 24 Received Heat Transfer 1833 | . 153 . 294 162 468 351 405 Siege Activations . | . . . . . . . . Martial Activations . | . . . . . . . . Shielding Activations . | . . . . . . . . Robots Disrupted . | . . . . . . . . Combat Hostiles . | . . . . . . . . Robots Corrupted 21 | . . . . . 1 11 9 Combat Hostiles 14 | . . . . . 1 8 5 Parts Fried 31 | . . . . . 2 18 11 Impact Corruptions 69 | . . . . . 7 28 34 Robots Melted 1 | . . . 1 . . . . Combat Hostiles 1 | . . . 1 . . . . Parts Melted 4 | 2 . . 1 1 . . . Heat Transferred 3947 | 333 333 . 1665 1110 370 . 136 Parts Sabotaged . | . . . . . . . . Parts Stolen . | . . . . . . . . Parts Stripped . | . . . . . . . . Power Chain Reactions . | . . . . . . . . Alert | -11 -10 -10 -9 -8 -8 -8 -7 ------- Run | Yrd Mat Min Mat Mat Gar Mat Fac Maximum Alert Level 2 | . 1 . . 1 2 1 1 Low Security (%) 69 | 100 98 100 100 99 18 16 97 Level 1 24 | . 1 . . . 47 83 2 Level 2 5 | . . . . . 33 . . Level 3 . | . . . . . . . . Level 4 . | . . . . . . . . Level 5 . | . . . . . . . . High Security . | . . . . . . . . Max Security . | . . . . . . . . Peak Influence 609 | 10 201 62 123 208 609 311 222 Initial 296 | . . 62 20 42 67 296 107 Average 147 | 2 38 62 74 57 331 241 102 Influence Increases 3318 | 20 278 . 433 688 612 567 720 Destroy 0b10 Robot/C 2000 | . 120 . 300 480 440 320 340 Destroy 0b10 Robot/NC 190 | 20 5 . 15 40 . 40 70 Destroy Leader 414 | . 20 . 82 104 30 104 74 Allied During Kill 2 | . . . . . . . 2 Successful Hack 82 | . 17 . 5 16 . 13 31 Disable Machine 135 | . 15 . 15 30 . 45 30 Anti-Garrison Action 50 | . . . . . 50 . . Destroy Structure 85 | . 11 . 1 3 32 15 23 Partial Spotted 15 | . . . . . . 15 . Lose Combat Pursuer 345 | . 90 . 15 15 60 15 150 Influence Decreases 3149 | 20 117 109 383 686 107 939 788 Entered New Map 671 | . . 99 32 60 37 313 130 Time Decay 1698 | 20 87 . 281 416 . 416 478 Lost Part 460 | . 30 10 70 60 70 60 160 Lost Ally 20 | . . . . . . . 20 Purge Threat 300 | . . . . 150 . 150 . Squads Dispatched 12 | . 3 . . 1 . 4 4 Investigation 2 | . 1 . . . . 1 . Extermination 2 | . . . . . . . 2 Reinforcement 8 | . 2 . . 1 . 3 2 Assault . | . . . . . . . . Garrison . | . . . . . . . . Intercept . | . . . . . . . . Searches Triggered . | . . . . . . . . Construction Impeded . | . . . . . . . . Haulers Reinforced . | . . . . . . . . Active Scanning Responses . | . . . . . . . . Cargo Convoy Interrupts 1 | . . . . . . . 1 Stealth | -11 -10 -10 -9 -8 -8 -8 -7 --------- Run | Yrd Mat Min Mat Mat Gar Mat Fac Distress Signals 12 | . 2 . 2 3 . 1 4 Communications Jammed . | . . . . . . . . Distress Signals . | . . . . . . . . Times Spotted 179 | . 22 5 21 34 25 25 47 Peak Tracking Total 13 | . 9 7 6 8 7 4 13 Tactical Retreats 15 | . 2 . 1 1 4 1 6 Traps | -11 -10 -10 -9 -8 -8 -8 -7 ------- Run | Yrd Mat Min Mat Mat Gar Mat Fac Traps Triggered 6 | . 1 . . 2 1 2 . Indirectly . | . . . . . . . . Trap Hack Attempts . | . . . . . . . . Triggered . | . . . . . . . . Disarmed 5 | . . . . . . 5 . Reprogrammed . | . . . . . . . . Reused . | . . . . . . . . Traps Extracted . | . . . . . . . . Installed . | . . . . . . . . Triggered . | . . . . . . . . Machines | -11 -10 -10 -9 -8 -8 -8 -7 ---------- Run | Yrd Mat Min Mat Mat Gar Mat Fac Machines Disabled 10 | . 1 . 1 2 1 3 2 Max in Single Turn 2 | . 1 . 1 1 1 1 2 Garrison Relay 1 | . . . . . 1 . . Machines Repaired . | . . . . . . . . Machines Dismantled . | . . . . . . . . Machines Sabotaged . | . . . . . . . . Overloaded Fab Kills . | . . . . . . . . Hacking | -11 -10 -10 -9 -8 -8 -8 -7 --------- Run | Yrd Mat Min Mat Mat Gar Mat Fac Machines Accessed 26 | . 4 . 3 6 1 7 5 Terminals 21 | . 4 . 2 5 1 5 4 Fabricators . | . . . . . . . . Repair Stations . | . . . . . . . . Recycling Units 2 | . . . . . . 1 1 Scanalyzers 2 | . . . 1 . . 1 . Garrison Access 1 | . . . . 1 . . . Total Hacks 69 | . 13 . 4 17 1 24 10 Successful 36 | . 5 . 4 8 . 14 5 Failed 32 | . 8 . . 9 1 9 5 Catastrophic 3 | . . . . 2 . . 1 Database Lockouts 1 | . . . . . . 1 . Manual 45 | . 9 . 2 14 1 13 6 Terminals 57 | . 13 . 3 16 1 15 9 Fabricators . | . . . . . . . . Repair Stations . | . . . . . . . . Recycling Units 2 | . . . . . . 1 1 Scanalyzers 9 | . . . 1 . . 8 . Garrison Access 1 | . . . . 1 . . . Terminal Hacks 9 | . 1 . 1 3 . 2 2 Record 1 | . . . 1 . . . . Part Schematic 1 | . . . . 1 . . . Robot Analysis 1 | . . . . . . . 1 Prototype ID Bank 1 | . 1 . . . . . . Open DSF 1 | . . . . . . . 1 Terminal Index 1 | . . . . 1 . . . Unreport Threat 2 | . . . . 1 . 1 . Disarm Traps 1 | . . . . . . 1 . Fabricator Hacks . | . . . . . . . . Repair Station Hacks . | . . . . . . . . Recycling Unit Hacks 2 | . . . . . . 1 1 Report Inventory 2 | . . . . . . 1 1 Scanalyzer 8 | . . . 1 . . 7 . Insert Component 3 | . . . . . . 3 . Analyze 3 | . . . . . . 3 . Retrieve Study 2 | . . . 1 . . 1 . Garrison Access Hacks 1 | . . . . 1 . . . Unlock Access 1 | . . . . 1 . . . Unauthorized Hacks 16 | . 4 . 2 4 . 4 2 Terminals 16 | . 4 . 2 4 . 4 2 Botnet 16 | . 4 . 2 4 . 4 2 Fabricators . | . . . . . . . . Repair Stations . | . . . . . . . . Recycling Units . | . . . . . . . . Scanalyzers . | . . . . . . . . Garrison Access . | . . . . . . . . Data Cores Recovered . | . . . . . . . . Used . | . . . . . . . . Hacking Detections 20 | . 4 . 1 4 1 5 5 Full Trace Events . | . . . . . . . . Feedback Events . | . . . . . . . . Feedback Blocked . | . . . . . . . . Robot Schematics Acquired . | . . . . . . . . Robots Built . | . . . . . . . . Authchips . | . . . . . . . . Time . | . . . . . . . . Total Robot Build Rating . | . . . . . . . . Part Schematics Acquired 4 | . . . . 1 . 3 . Parts Built . | . . . . . . . . Authchips . | . . . . . . . . Time . | . . . . . . . . Total Part Build Rating . | . . . . . . . . Part Studies Acquired 1 | . . . 1 . . . . Parts Repaired . | . . . . . . . . Time . | . . . . . . . . Parts Recycled . | . . . . . . . . Recycled Matter . | . . . . . . . . Retrieved Matter . | . . . . . . . . Retrieved Components . | . . . . . . . . Parts Scanalyzed 3 | . . . . . . 3 . Part Schematics Acquired 3 | . . . . . . 3 . Parts Damaged . | . . . . . . . . Bothacking | -11 -10 -10 -9 -8 -8 -8 -7 ------------ Run | Yrd Mat Min Mat Mat Gar Mat Fac Used RIF Installer 2 | . . . . . 2 . . Robot Detection 1 | . . . . . 1 . . Robots Hacked 3 | . . . . . . 1 2 Non-combat 1 | . . . . . . 1 . Combat 2 | . . . . . . . 2 Robot Hacks Applied 3 | . . . . . . 1 2 parse_system 1 | . . . . . . 1 . find_garrison 1 | . . . . . . . 1 formatsys_high 1 | . . . . . . . 1 Relay Couplers Released 3 | . . . . . 3 . . Machine Destruction 3 | . . . . . 3 . . Attached 2 | . . . . . . . 2 Fabnet Peak Effective % . | . . . . . . . . Robots Rewired . | . . . . . . . . Allies Hacked . | . . . . . . . . Hacks Repelled . | . . . . . . . . Allies | -11 -10 -10 -9 -8 -8 -8 -7 -------- Run | Yrd Mat Min Mat Mat Gar Mat Fac Total Allies 1 | . . . . . . . 1 Largest Group 1 | . . . . . . . 1 Highest-Rated Group 32 | . . . . . . . 32 Highest-Rated Ally 32 | . . . . . . . 32 Total Orders . | . . . . . . . . Ally Attacks 2 | . . . . . . . 2 Total Damage 70 | . . . . . . . 70 Kills 1 | . . . . . . . 1 Allies Corrupted . | . . . . . . . . Allies Melted . | . . . . . . . . Intel | -11 -10 -10 -9 -8 -8 -8 -7 ------- Run | Yrd Mat Min Mat Mat Gar Mat Fac Active Infowar (turns) 4992 | 23 333 8 638 1002 784 1015 1189 Sensors 3860 | . . . . 959 784 1015 1102 Traps 172 | . . . . . . . 172 Seismic 1045 | 23 333 8 638 43 . . . Robot Analysis Total 1 | . . . . . . . 1 Derelict Logs Recovered . | . . . . . . . . Drone Launches . | . . . . . . . . Drone Recoveries . | . . . . . . . . Exploration | -11 -10 -10 -9 -8 -8 -8 -7 ------------- Run | Yrd Mat Min Mat Mat Gar Mat Fac Turns Passed 5099 | 87 333 8 638 1002 784 1015 1232 Spaces Moved 2665 | 53 260 6 300 577 411 524 534 Core 33 | 4 . . . . . . 29 Treads 99 | . . . . . . 5 94 Legs . | . . . . . . . . Wheels 2533 | 49 260 6 300 577 411 519 411 Hover . | . . . . . . . . Flight . | . . . . . . . . Fastest Speed 50 | 50 80 110 110 100 100 100 50 Average Speed 128 | 77 102 115 138 103 137 141 149 Slowest Speed 1100 | 80 140 140 155 160 160 320 1100 Overloaded Moves . | . . . . . . . . Propulsion Burnouts . | . . . . . . . . Robots Hopped . | . . . . . . . . Potential Cave-ins . | . . . . . . . . Cave-ins Triggered . | . . . . . . . . Exploration Rate (%) 31 | 3 53 6 28 59 40 46 18 Regions Visited 7 Branch Regions 1 Pre-discovered Areas . | . . . . . . . . Known Exits Taken 2 | . . . . 1 . 1 . Unknown Exits Taken 4 | 1 1 1 1 . . . . Scrap Searched . | . . . . . . . . Spaces Dug 21 | . . . . . 9 5 7 Terrain Destroyed 88 | . 15 . . . 18 17 38 Melee 17 | . . . . . 5 5 7 Projectile . | . . . . . . . . AOE 71 | . 15 . . . 13 12 31 Terrain Rammed . | . . . . . . . . Walls Destroyed . | . . . . . . . . Machines Disabled . | . . . . . . . . Actions | -11 -10 -10 -9 -8 -8 -8 -7 --------- Run | Yrd Mat Min Mat Mat Gar Mat Fac Total 3677 | 82 296 7 431 842 515 693 811 Wait 353 | . 6 . 45 114 13 42 133 Move 2658 | 52 259 5 299 576 410 523 534 Hop . | . . . . . . . . Pick Up 101 | 15 9 . 22 21 6 17 11 Fast Attach 31 | . . . 1 7 4 11 8 Attach 47 | 7 1 2 10 8 4 5 10 Detach 1 | . . . . . . 1 . Swap 39 | . 1 . 1 13 2 9 13 Drop 66 | . 3 . 5 19 4 22 13 Fire 211 | 8 16 . 48 81 53 2 3 Melee 166 | . . . . . 19 61 86 Ram 4 | . 1 . . 3 . . . Kick . | . . . . . . . . Crush . | . . . . . . . . Escape Stasis . | . . . . . . . . Rewire . | . . . . . . . . Trap . | . . . . . . . . Miscellaneous . | . . . . . . . . Route ------- -11/Scrapyard -10/Materials -10/Mines -9/Materials (discovered 2 exits: *Mat / [*Sto]) -8/Materials (discovered 3 exits: *Fac x2 / Gar) -8/Garrison -8/Materials (discovered 2 exits: *Fac x2) -7/Factory History --------- Turn | Location | Event 11 | -11/Scrapyard | Discovered new exit (range 16) 88 | -11/Scrapyard | Entered Materials 257 | -10/Materials | Discovered new exit (range 9) 300 | -10/Materials | Build established: Mutant 421 | -10/Materials | Entered Mines 422 | -10/Mines | Assembled infested the area 423 | -10/Mines | Discovered new exit (range 6) 429 | -10/Mines | Entered Materials 429 | -9/Materials | Evolved 2 slots: Utility x2 460 | -9/Materials | Lost 4 parts (1p2n1w) 564 | -9/Materials | Lost 3 parts (2n1w) 602 | -9/Materials | Discovered new exit (range 14) 840 | -9/Materials | Core integrity fell below 50% 906 | -9/Materials | Lost 4 parts (1p1n2w) 964 | -9/Materials | Discovered new exit (range 11) 1067 | -9/Materials | Entered another Materials area 1067 | -8/Materials | Evolved 2 slots: Propulsion x1, Utility x1 1341 | -8/Materials | Build established: Scavenger-Mutant 1479 | -8/Materials | Destroyed 7 combat bots 1654 | -8/Materials | Discovered new exit (range 15) 1694 | -8/Materials | Identified exit to Factory 1892 | -8/Materials | Discovered exit to Factory (range 12) 2062 | -8/Materials | Identified exit to Garrison 2069 | -8/Materials | Entered Garrison 2092 | -8/Garrison | Installed Relay Interface Framework 2123 | -8/Garrison | Garrison Relay disabled 2143 | -8/Garrison | Triggered checkpoint 2315 | -8/Garrison | Triggered checkpoint 2385 | -8/Garrison | Triggered checkpoint 2518 | -8/Garrison | Discovered new exit (range 10) 2638 | -8/Garrison | Expanded RIF knowledge: Robot Detection 2721 | -8/Garrison | Identified exit to Materials 2780 | -8/Garrison | Triggered checkpoint 2790 | -8/Garrison | Core integrity fell below 50% 2828 | -8/Garrison | Destroyed 8 combat bots 2853 | -8/Garrison | Entered Materials 3041 | -8/Materials | Central database locked down 3383 | -8/Materials | Discovered exit to Factory (range 15) 3439 | -8/Materials | Core integrity fell below 20% 3860 | -8/Materials | Discovered exit to Factory (range 6) 3868 | -8/Materials | Entered Factory 3868 | -7/Factory | Evolved 2 slots: Utility x2 3893 | -7/Factory | Build established: Mutant 4486 | -7/Factory | Build established: Gladiator 5004 | -7/Factory | Lost 3 parts (2n1u) 5069 | -7/Factory | Cargo convoy interrupted 5077 | -7/Factory | Core integrity fell below 50% 5086 | -7/Factory | Core integrity fell below 20% 5100 | -7/Factory | Destroyed by Y-54 Guardian with Gatling Laser Last Messages --------------- 05080_ Relay Coupler [Hunter] destroyed. 05082_ Penetrated by Slug. 05082_ Mni. Grenade Launcher destroyed. 05082_ Dropped Hcp. Storage Unit. 05083_ Dropped Ion Cannon. 05083_ U-05 Engineer builds a Door. 05084_ K-01 Serf collects debris. 05084_ R-06 Scavenger collects Wheel+. 05085_ Penetrated by Slug. 05087_ K-01 Serf collects debris. 05087_ U-05 Engineer builds a Wall. 05087_ R-06 Scavenger collects Lgt. Ion Engine. 05088_ P-60 Hacker resets A-27 Freighter, system corruption cleaned. 05091_ R-06 Scavenger collects Wheel+. 05094_ System corrupted: IFF burst signal emitted. 05094_ K-01 Serf collects debris. 05096_ K-01 Serf destroyed. 05099_ Acquired Arm. Huge Wheel. Map ----- +----------------------------------------------------+ | ?? # !############## | | ??######+##### # /%+!/ | | ?????????????# # /!####+######## ########## | | ?????????????+ # !# #?# #????????? | | ?????????????## ## # #?# #????????? | | ??????????????# ?# # #?# #????????? | | ??????????????# ?# # #?# #????????? | | ??????????????# ?####################?#+#????????? | | ??????????????# ?????????????????????????????????? | | ??????????????# ?????????????????????????????????? | | ??????????????? ?????????????????????????????????? | | ??????????????? ?????????????????????????????????? | | ?????????????????????????????????????????????????? | | ?????????????????????????????????????????????????? | | ?????????????????????????????????????????????????? | | ?????????????????????????????????????????????????? | | ?????????????????????????????????????????????????? | | ?????????????????????????????????????Y???????????? | | ?????????????????????????????????????????????????? | | ??????????????????????####+####??????????????????? | | ????????????### ??????# ##########+######### | | ????????????# ##### k | | ???????????## "" | | ??????????? Y % T" | | ????????????# | | ???????????????? ##### @ p | | ??????????????????????# ###+################ | | ??????????????????????#########?????????????????# | | ????????????????????????????????????????????????# | | ????????????????????????????????????????????????# | | ????????????????????????????????????????????????# | | ????????????????????????????????????????????????# | | ????????????????????????????????????????????????# | | ????????????????????????????????????????????????# | | ????????????????????????????????????????????????# | | ????????????????????????????????????????????????# | | ????????????????????????????????????????????????## | | ?????????????????????????????????????????????????? | | ?????????????????????????????????????????????????? | | ?????????????????????????????????????????????????? | | ?????????????????????????????????????????????????? | | ?????????????????????????????????????????????????? | | ?????????????????????????????????????????????????? | | ?????????????????????????????????????????????????? | | ?????????????????????????????????????????????????? | | ?????????????????????????????????????????????????? | | ?????????????????????????????????????????????????? | | ?????????????????????????????????????????????????? | | ?????????????????????????????????????????????????? | | ?????????????????????????????????????????????????? | +----------------------------------------------------+ Best States ------------- Heat Dissipation 41 Energy Generation 18 Energy Capacity 290 Matter Stores 300 Matter Capacity 300 Sight Range 16 Robot Scan Range 15 Terrain Scan Density 10 Armor Coverage 225 Resistance: KI 20 Resistance: EM 15 Core Shielding 20 Weapon Shielding 66 Evasion (%) 50 Targeting Accuracy 8 Melee Accuracy 6 Core Analysis 6 Recoil Reduction 3 Offensive Hacking 10 Relay Coupler Types 1 Relay Coupler Value 24 Item Schematics ----------------- Plasma Cutter | -8/Materials | Hacked Adv. Heat Sink | -8/Materials | Scanalyzed Remote Datajack | -8/Materials | Scanalyzed Imp. Grenade Launcher | -8/Materials | Scanalyzed Robot Schematics ------------------ None Fabricated ------------ Nothing Repaired ---------- Nothing Studied --------- Wheel | -9/Materials | Hacked Alien Tech Used ----------------- None Achievements -------------- Assimilation Complete You Will Be Upgraded Challenges ------------ None Game ------ Seed TowerTrackerShell Manual? 0 Play Time 01:51:40 Cumulative 421.5 hours Start 2025.10.31 @ 09:07:51 End 2025.11.01 @ 08:42:49 Sessions 5 Manual Loads 0 Difficulty Rogue Special Mode None Game No. 162 Rogue 159 Adventurer 3 Explorer 0 Win Type - Total 0 Types 0/0/0/0/0/0/0/0/0/0 Lore% 27 Gallery% 52 Achievement% 32 Wizard Run 0 Options --------- Layout 2 ASCII 0 Keyboard 0 Movement Mouse Keybinds 0 Fullscreen 1 Font 24/Smallcaps Map View 50x44 Zoom Use 0% Tactical HUD 1 Map Filters NONE Filters NONE Steam 1 RUN: 3de85b78-ebb3-4c7a-8585-b395f393ca60